fUSD/lending_fUSD_20250125
["ID","MTS","AMOUNT","RATE_DAILY","PERIOD"]
[350328236,1737797469444,-500.0,0.00018356,2]
[350328237,1737797469454,-807.75,0.00018356,2]
[350328238,1737797469464,-1420.82,0.00018356,2]
[350328239,1737797469474,-1101.59,0.00018356,2]
[350328240,1737797469484,-1481.32,0.00018356,2]
[350328241,1737797469493,-1244.19,0.00018356,2]
[350328242,1737797469509,-565.45,0.00018356,2]
[350328243,1737797469519,-638.58,0.00018356,2]
[350328244,1737797469529,-2982.69,0.00018356,2]
[350328245,1737797469540,-1367.72,0.00018356,2]
[350328246,1737797469550,-2048.69,0.00018356,2]
[350328247,1737797469560,-72563.3,0.00018356,2]
[350328248,1737797469571,-150.0,0.00018363,2]
[350328249,1737797469580,-150.0,0.00018365,2]
[350328250,1737797469591,-500.0,0.00018389,2]
[350328251,1737797469603,-553.97,0.00018389,2]
[350328252,1737797469612,-500.0,0.00018389,2]
[350328253,1737797469624,-584.38,0.00018389,2]
[350328254,1737797469634,-500.0,0.00018389,2]
[350328255,1737797469645,-584.16,0.00018389,2]
[350328256,1737797469655,-647.83,0.00018389,2]
[350328257,1737797469665,-572.01,0.00018389,2]
[350328258,1737797469674,-500.0,0.00018389,2]
[350328259,1737797469687,-704.28,0.00018389,2]
[350328260,1737797469697,-500.0,0.00018389,2]
[350328261,1737797469706,-683.65,0.00018389,2]
[350328262,1737797469715,-544.45,0.00018389,2]
[350328263,1737797469725,-668.98,0.00018389,2]
[350328264,1737797469734,-558.68,0.00018389,2]
[350328265,1737797469743,-596.36,0.00018389,2]
[350328266,1737797469755,-531.39,0.00018389,2]
[350328267,1737797469764,-599.6,0.00018389,2]
[350328268,1737797469776,-500.0,0.00018389,2]
[350328269,1737797469785,-703.57,0.00018389,2]
[350328270,1737797469794,-500.0,0.00018389,2]
[350328271,1737797469804,-577.49,0.00018389,2]
[350328272,1737797469813,-767.15,0.00018389,2]
[350328273,1737797469823,-730.31,0.00018389,2]
[350328274,1737797469835,-502.52,0.00018389,2]
[350328275,1737797469844,-734.62,0.00018389,2]
[350328276,1737797469854,-685.56,0.00018389,2]
[350328277,1737797469863,-730.02,0.00018389,2]
[350328278,1737797469873,-500.0,0.00018389,2]
[350328279,1737797469884,-509.44,0.00018389,2]
[350328280,1737797469894,-500.0,0.00018389,2]
[350328281,1737797469904,-590.44,0.00018389,2]
[350328282,1737797469914,-564.49,0.00018389,2]
[350328283,1737797469925,-602.74,0.00018389,2]
[350328284,1737797469935,-670.66,0.00018389,2]
[350328285,1737797469945,-542.87,0.00018389,2]
[350328286,1737797469954,-500.0,0.00018389,2]
[350328287,1737797469963,-599.52,0.00018389,2]
[350328288,1737797469972,-500.0,0.00018389,2]
[350328289,1737797469982,-717.06,0.00018389,2]
[350328290,1737797469991,-150.0,0.00018392,2]
[350328291,1737797470000,-1000.0,0.00018412,2]
[350328292,1737797470010,-150.0,0.00018433,2]
[350328293,1737797470019,-1857.52180965,0.00018452,2]
[350328294,1737797470028,-500.0,0.0001849,2]
[350328295,1737797470038,-500.0,0.0001849,2]
[350328296,1737797470047,-242.54820446,0.0001849,2]
[350328297,1737797470056,-847.51,0.0001849,2]
[350328298,1737797470066,-151.0,0.0001849,2]
[350328299,1737797470075,-315.74253432,0.0001849,2]
[350328300,1737797470084,-179.799117,0.0001849,2]
[350328301,1737797470093,-948.3,0.0001849,2]
[350328302,1737797470103,-500.0,0.0001849,2]
[350328303,1737797470112,-892.9,0.0001849,2]
[350328304,1737797470121,-500.0,0.0001849,2]
[350328305,1737797470131,-810.96,0.0001849,2]
[350328306,1737797470140,-2187.67,0.0001849,2]
[350328307,1737797470149,-790.46,0.0001849,2]
[350328308,1737797470159,-1160.27,0.0001849,2]
[350328309,1737797470168,-1757.48,0.0001849,2]
[350328310,1737797470177,-500.0,0.0001849,2]
[350328311,1737797470186,-1000.0,0.0001849,2]
[350328312,1737797470196,-1272.01,0.0001849,2]
[350328313,1737797470206,-500.0,0.0001849,2]
[350328314,1737797470215,-2144.12,0.0001849,2]
[350328315,1737797470224,-1761.29,0.0001849,2]
[350328316,1737797470234,-500.0,0.0001849,2]
[350328317,1737797470243,-500.0,0.0001849,2]
[350328318,1737797470252,-500.0,0.00018491,2]
[350328319,1737797470262,-660.25,0.00018491,2]
[350328320,1737797470271,-500.0,0.00018491,2]
[350328321,1737797470281,-500.0,0.00018491,2]
[350328322,1737797470291,-500.0,0.00018491,2]
[350328323,1737797470300,-500.0,0.00018491,2]
[350328324,1737797470309,-556.36,0.00018491,2]
[350328325,1737797470318,-556.97,0.00018491,2]
[350328326,1737797470327,-500.0,0.00018491,2]
[350328327,1737797470336,-554.44,0.00018491,2]
[350328328,1737797470345,-520.83,0.00018491,2]
[350328329,1737797470355,-500.0,0.00018491,2]
[350328330,1737797470364,-500.0,0.00018491,2]
[350328331,1737797470373,-500.0,0.00018491,2]
[350328332,1737797470383,-500.0,0.00018491,2]
[350328333,1737797470392,-500.0,0.00018491,2]
[350328334,1737797470401,-500.0,0.00018491,2]
[350328335,1737797470411,-670.64,0.00018491,2]
[350328336,1737797470420,-602.32,0.00018491,2]
[350328337,1737797470429,-680.16,0.00018491,2]
[350328338,1737797470438,-529.1,0.00018491,2]
[350328339,1737797470448,-500.0,0.00018491,2]
[350328340,1737797470457,-300.0,0.00018492,2]
[350328341,1737797470467,-859.85,0.00018492,2]
[350328342,1737797470476,-500.0,0.00018492,2]
[350328343,1737797470486,-1261.29,0.00018492,2]
[350328344,1737797470496,-500.0,0.00018492,2]
[350328345,1737797470506,-414.733287,0.00018492,2]
[350328346,1737797470516,-500.0,0.00018492,2]
[350328347,1737797470525,-886.87,0.00018492,2]
[350328348,1737797470536,-677.70576,0.00018492,2]
[350328349,1737797470548,-751.77,0.00018492,2]
[350328350,1737797470557,-1965.33,0.00018492,2]
[350328351,1737797470567,-1750.49,0.00018492,2]
[350328352,1737797470577,-620.77,0.00018492,2]
[350328353,1737797470587,-911.51,0.00018492,2]
[350328354,1737797470599,-500.0,0.00018492,2]
[350328355,1737797470702,-1144.83,0.00018492,2]
[350328356,1737797470712,-3470.4,0.00018492,2]
[350328357,1737797470722,-670.47,0.00018492,2]
[350328358,1737797470733,-931.54,0.00018492,2]
[350328359,1737797470743,-1892.47,0.00018492,2]
[350328360,1737797470754,-1137.65,0.00018492,2]
[350328361,1737797470765,-526.37,0.00018492,2]
[350328362,1737797470775,-2356.62,0.00018492,2]
[350328363,1737797470785,-2776.17,0.00018492,2]
[350328364,1737797470795,-1575.32,0.00018492,2]
[350328365,1737797470805,-1053.08,0.00018492,2]
[350328366,1737797470814,-500.0,0.00018492,2]
[350328367,1737797470823,-3004.39,0.00018492,2]
[350328368,1737797470833,-607.11,0.00018492,2]
[350328369,1737797470843,-854.74,0.00018492,2]
[350328370,1737797470852,-1162.18,0.00018492,2]
[350328371,1737797470861,-966.49,0.00018493,2]
[350328372,1737797470871,-1692.78,0.00018493,2]
[350328373,1737797470881,-1322.88,0.00018493,2]
[350328374,1737797470890,-3207.34,0.00018493,2]
[350328375,1737797470900,-1220.06,0.00018493,2]
[350328376,1737797470912,-1876.29,0.00018493,2]
[350328377,1737797470922,-3623.03,0.00018493,2]
[350328378,1737797470932,-1095.65,0.00018493,2]
[350328379,1737797470942,-893.22,0.00018493,2]
[350328380,1737797470952,-500.0,0.00018493,2]
[350328381,1737797470962,-2172.47,0.00018493,2]
[350328382,1737797470972,-500.0,0.00018493,2]
[350328383,1737797470982,-2137.64,0.00018493,2]
[350328384,1737797470992,-3965.67,0.00018493,2]
[350328385,1737797471002,-727.17,0.00018493,2]
[350328386,1737797471012,-2139.73,0.00018493,2]
[350328387,1737797471021,-658.04,0.00018493,2]
[350328388,1737797471031,-500.0,0.00018493,2]
[350328389,1737797471041,-993.89,0.00018493,2]
[350328390,1737797471051,-1604.26,0.00018493,2]
[350328391,1737797471060,-500.0,0.00018493,2]
[350328392,1737797471069,-500.0,0.00018493,2]
[350328393,1737797471079,-767.56,0.00018493,2]
[350328394,1737797471088,-1799.67,0.00018493,2]
[350328395,1737797471098,-900.97,0.00018493,2]
[350328396,1737797471107,-2375.71,0.00018493,2]
[350328397,1737797471117,-730.12,0.00018493,2]
[350328398,1737797471126,-849.75,0.00018493,2]
[350328399,1737797471136,-681.52,0.00018493,2]
[350328400,1737797471146,-563.98,0.00018493,2]
[350328401,1737797471156,-500.0,0.00018493,2]
[350328402,1737797471166,-500.0,0.00018493,2]
[350328403,1737797471175,-1043.69,0.00018493,2]
[350328404,1737797471185,-719.35,0.00018493,2]
[350328405,1737797471195,-549.73,0.00018493,2]
[350328406,1737797471204,-500.0,0.00018493,2]
[350328407,1737797471214,-540.78,0.00018493,2]
[350328408,1737797471223,-500.0,0.00018493,2]
[350328409,1737797471233,-807.75,0.00018493,2]
[350328410,1737797471243,-1420.82,0.00018493,2]
[350328411,1737797471252,-1101.59,0.00018493,2]
[350328412,1737797471262,-1481.32,0.00018493,2]
[350328413,1737797471271,-1244.19,0.00018493,2]
[350328414,1737797471283,-565.45,0.00018493,2]
[350328415,1737797471292,-638.58,0.00018493,2]
[350328416,1737797471301,-2982.69,0.00018493,2]
[350328417,1737797471311,-1367.72,0.00018493,2]
[350328418,1737797471320,-2048.69,0.00018493,2]
[350328419,1737797471329,-150.0,0.00018494,2]
[350328420,1737797471339,-150.0,0.00018495,2]
[350328421,1737797471348,-3979.41,0.000185,2]
[350328422,1737797471357,-151.0,0.000185,2]
[350328423,1737797471366,-500.0,0.00018526,2]
[350328424,1737797471376,-553.97,0.00018526,2]
[350328425,1737797471385,-500.0,0.00018526,2]
[350328426,1737797471395,-584.38,0.00018526,2]
[350328427,1737797471404,-500.0,0.00018526,2]
[350328428,1737797471414,-584.16,0.00018526,2]
[350328429,1737797471423,-647.83,0.00018526,2]
[350328430,1737797471432,-572.01,0.00018526,2]
[350328431,1737797471442,-500.0,0.00018526,2]
[350328432,1737797471451,-704.28,0.00018526,2]
[350328433,1737797471462,-500.0,0.00018526,2]
[350328434,1737797471471,-683.65,0.00018526,2]
[350328435,1737797471480,-544.45,0.00018526,2]
[350328436,1737797471489,-668.98,0.00018526,2]
[350328437,1737797471498,-558.68,0.00018526,2]
[350328438,1737797471508,-596.36,0.00018526,2]
[350328439,1737797471518,-531.39,0.00018526,2]
[350328440,1737797471528,-599.6,0.00018526,2]
[350328441,1737797471542,-500.0,0.00018526,2]
[350328442,1737797471552,-703.57,0.00018526,2]
[350328443,1737797471561,-500.0,0.00018526,2]
[350328444,1737797471571,-577.49,0.00018526,2]
[350328445,1737797471582,-767.15,0.00018526,2]
[350328446,1737797471591,-730.31,0.00018526,2]
[350328447,1737797471601,-502.52,0.00018526,2]
[350328448,1737797471611,-734.62,0.00018526,2]
[350328449,1737797471622,-685.56,0.00018526,2]
[350328450,1737797471632,-730.02,0.00018526,2]
[350328451,1737797471642,-500.0,0.00018526,2]
[350328452,1737797471652,-509.44,0.00018526,2]
[350328453,1737797471662,-500.0,0.00018526,2]
[350328454,1737797471672,-590.44,0.00018526,2]
[350328455,1737797471682,-564.49,0.00018526,2]
[350328456,1737797471691,-602.74,0.00018526,2]
[350328457,1737797471701,-670.66,0.00018526,2]
[350328458,1737797471711,-542.87,0.00018526,2]
[350328459,1737797471721,-500.0,0.00018526,2]
[350328460,1737797471730,-599.52,0.00018526,2]
[350328461,1737797471739,-500.0,0.00018526,2]
[350328462,1737797471750,-717.06,0.00018526,2]
[350328463,1737797471760,-251.942098,0.00018527,2]
[350328464,1737797471769,-251.942098,0.00018527,2]
[350328465,1737797471779,-2486.34149658,0.00018563,2]
[350328466,1737797471791,-2486.34149658,0.00018563,2]
[350328467,1737797471800,-2486.34149658,0.00018563,2]
[350328468,1737797471809,-500.0,0.00018602,2]
[350328469,1737797471819,-150.0,0.00018623,2]
[350328470,1737797471829,-284.78170819,0.00018627,2]
[350328471,1737797471839,-847.51,0.00018627,2]
[350328472,1737797471848,-948.3,0.00018627,2]
[350328473,1737797471859,-500.0,0.00018627,2]
[350328474,1737797471869,-892.9,0.00018627,2]
[350328475,1737797471879,-500.0,0.00018627,2]
[350328476,1737797471888,-810.96,0.00018627,2]
[350328477,1737797471899,-2187.67,0.00018627,2]
[350328478,1737797471909,-790.46,0.00018627,2]
[350328479,1737797471919,-1160.27,0.00018627,2]
[350328480,1737797471929,-1757.48,0.00018627,2]
[350328481,1737797471939,-500.0,0.00018627,2]
[350328482,1737797471949,-1000.0,0.00018627,2]
[350328483,1737797471958,-1272.01,0.00018627,2]
[350328484,1737797471968,-500.0,0.00018627,2]
[350328485,1737797471978,-2144.12,0.00018627,2]
[350328486,1737797471988,-1761.29,0.00018627,2]
[350328487,1737797471997,-500.0,0.00018627,2]
[350328488,1737797472007,-500.0,0.00018628,2]
[350328489,1737797472016,-660.25,0.00018628,2]
[350328490,1737797472025,-500.0,0.00018628,2]
[350328491,1737797472036,-500.0,0.00018628,2]
[350328492,1737797472045,-500.0,0.00018628,2]
[350328493,1737797472054,-500.0,0.00018628,2]
[350328494,1737797472063,-556.36,0.00018628,2]
[350328495,1737797472073,-556.97,0.00018628,2]
[350328496,1737797472082,-542.37490865,0.00018628,2]
[350328497,1737797472092,-554.44,0.00018628,2]
[350328498,1737797472102,-520.83,0.00018628,2]
[350328499,1737797472111,-500.0,0.00018628,2]
[350328500,1737797472121,-500.0,0.00018628,2]
[350328501,1737797472131,-500.0,0.00018628,2]
[350328502,1737797472140,-500.0,0.00018628,2]
[350328503,1737797472150,-500.0,0.00018628,2]
[350328504,1737797472159,-500.0,0.00018628,2]
[350328505,1737797472169,-670.64,0.00018628,2]
[350328506,1737797472178,-602.32,0.00018628,2]
[350328507,1737797472188,-680.16,0.00018628,2]
[350328508,1737797472198,-529.1,0.00018628,2]
[350328509,1737797472295,-500.0,0.00018628,2]
[350328510,1737797472306,-859.85,0.00018629,2]
[350328511,1737797472317,-500.0,0.00018629,2]
[350328512,1737797472327,-1261.29,0.00018629,2]
[350328513,1737797472335,-500.0,0.00018629,2]
[350328514,1737797472345,-414.733287,0.00018629,2]
[350328515,1737797472354,-500.0,0.00018629,2]
[350328516,1737797472362,-886.87,0.00018629,2]
[350328517,1737797472371,-677.70576,0.00018629,2]
[350328518,1737797472381,-751.77,0.00018629,2]
[350328519,1737797472390,-1965.33,0.00018629,2]
[350328520,1737797472398,-1750.49,0.00018629,2]
[350328521,1737797472407,-620.77,0.00018629,2]
[350328522,1737797472416,-911.51,0.00018629,2]
[350328523,1737797472425,-500.0,0.00018629,2]
[350328524,1737797472434,-153.002702,0.00018629,2]
[350328525,1737797472443,-1144.83,0.00018629,2]
[350328526,1737797472452,-3470.4,0.00018629,2]
[350328527,1737797472461,-670.47,0.00018629,2]
[350328528,1737797472470,-931.54,0.00018629,2]
[350328529,1737797472479,-1892.47,0.00018629,2]
[350328530,1737797472488,-1137.65,0.00018629,2]
[350328531,1737797472497,-526.37,0.00018629,2]
[350328532,1737797472506,-2356.62,0.00018629,2]
[350328533,1737797472515,-2776.17,0.00018629,2]
[350328534,1737797472523,-1575.32,0.00018629,2]
[350328535,1737797472535,-1053.08,0.00018629,2]
[350328536,1737797472547,-397.66,0.00018629,2]
[350328537,1737797472556,-3004.39,0.00018629,2]
[350328538,1737797472566,-607.11,0.00018629,2]
[350328539,1737797472577,-854.74,0.00018629,2]
[350328540,1737797472586,-1162.18,0.00018629,2]
[350328541,1737797472596,-966.49,0.0001863,2]
[350328542,1737797472606,-1692.78,0.0001863,2]
[350328543,1737797472617,-1322.88,0.0001863,2]
[350328544,1737797472628,-3207.34,0.0001863,2]
[350328545,1737797472638,-1220.06,0.0001863,2]
[350328546,1737797472649,-1876.29,0.0001863,2]
[350328547,1737797472658,-3623.03,0.0001863,2]
[350328548,1737797472668,-1095.65,0.0001863,2]
[350328549,1737797472678,-893.22,0.0001863,2]
[350328550,1737797472687,-500.0,0.0001863,2]
[350328551,1737797472697,-2172.47,0.0001863,2]
[350328552,1737797472707,-500.0,0.0001863,2]
[350328553,1737797472717,-2137.64,0.0001863,2]
[350328554,1737797472727,-3965.67,0.0001863,2]
[350328555,1737797472737,-727.17,0.0001863,2]
[350328556,1737797472747,-2139.73,0.0001863,2]
[350328557,1737797472756,-658.04,0.0001863,2]
[350328558,1737797472766,-500.0,0.0001863,2]
[350328559,1737797472775,-993.89,0.0001863,2]
[350328560,1737797472785,-1604.26,0.0001863,2]
[350328561,1737797472795,-500.0,0.0001863,2]
[350328562,1737797472804,-500.0,0.0001863,2]
[350328563,1737797472814,-767.56,0.0001863,2]
[350328564,1737797472824,-1799.67,0.0001863,2]
[350328565,1737797472834,-900.97,0.0001863,2]
[350328566,1737797472843,-2375.71,0.0001863,2]
[350328567,1737797472852,-730.12,0.0001863,2]
[350328568,1737797472862,-849.75,0.0001863,2]
[350328569,1737797472872,-681.52,0.0001863,2]
[350328570,1737797472882,-563.98,0.0001863,2]
[350328571,1737797472892,-500.0,0.0001863,2]
[350328572,1737797472901,-500.0,0.0001863,2]
[350328573,1737797472911,-1043.69,0.0001863,2]
[350328574,1737797472921,-719.35,0.0001863,2]
[350328575,1737797472931,-549.73,0.0001863,2]
[350328576,1737797472941,-500.0,0.0001863,2]
[350328577,1737797472950,-540.78,0.0001863,2]
[350328578,1737797472959,-500.0,0.0001863,2]
[350328579,1737797472969,-807.75,0.0001863,2]
[350328580,1737797472979,-1420.82,0.0001863,2]
[350328581,1737797472989,-1101.59,0.0001863,2]
[350328582,1737797472998,-1481.32,0.0001863,2]
[350328583,1737797473007,-1244.19,0.0001863,2]
[350328584,1737797473017,-565.45,0.0001863,2]
[350328585,1737797473026,-638.58,0.0001863,2]
[350328586,1737797473035,-2982.69,0.0001863,2]
[350328587,1737797473044,-1367.72,0.0001863,2]
[350328588,1737797473053,-2048.69,0.0001863,2]
[350328589,1737797473063,-2315.0,0.00018645,2]
[350328590,1737797473072,-633.21827665,0.00018647,2]
[350328591,1737797473081,-159.02872813,0.00018663,2]
[350328592,1737797473090,-553.97,0.00018663,2]
[350328593,1737797473099,-500.0,0.00018663,2]
[350328594,1737797473108,-584.38,0.00018663,2]
[350328595,1737797473118,-500.0,0.00018663,2]
[350328596,1737797473127,-584.16,0.00018663,2]
[350328597,1737797473135,-647.83,0.00018663,2]
[350328598,1737797473144,-572.01,0.00018663,2]
[350328599,1737797473153,-500.0,0.00018663,2]
[350328600,1737797473162,-704.28,0.00018663,2]
[350328601,1737797473171,-500.0,0.00018663,2]
[350328602,1737797473180,-683.65,0.00018663,2]
[350328603,1737797473189,-544.45,0.00018663,2]
[350328604,1737797473199,-668.98,0.00018663,2]
[350328605,1737797473208,-558.68,0.00018663,2]
[350328606,1737797473217,-596.36,0.00018663,2]
[350328607,1737797473227,-531.39,0.00018663,2]
[350328608,1737797473236,-599.6,0.00018663,2]
[350328609,1737797473246,-500.0,0.00018663,2]
[350328610,1737797473255,-703.57,0.00018663,2]
[350328611,1737797473264,-500.0,0.00018663,2]
[350328612,1737797473273,-577.49,0.00018663,2]
[350328613,1737797473283,-767.15,0.00018663,2]
[350328614,1737797473293,-730.31,0.00018663,2]
[350328615,1737797473302,-502.52,0.00018663,2]
[350328616,1737797473311,-734.62,0.00018663,2]
[350328617,1737797473320,-685.56,0.00018663,2]
[350328618,1737797473330,-730.02,0.00018663,2]
[350328619,1737797473339,-500.0,0.00018663,2]
[350328620,1737797473349,-509.44,0.00018663,2]
[350328621,1737797473358,-500.0,0.00018663,2]
[350328622,1737797473368,-590.44,0.00018663,2]
[350328623,1737797473377,-564.49,0.00018663,2]
[350328624,1737797473387,-602.74,0.00018663,2]
[350328625,1737797473396,-670.66,0.00018663,2]
[350328626,1737797473405,-542.87,0.00018663,2]
[350328627,1737797473414,-500.0,0.00018663,2]
[350328628,1737797473424,-599.52,0.00018663,2]
[350328629,1737797473433,-500.0,0.00018663,2]
[350328630,1737797473443,-717.06,0.00018663,2]
[350328631,1737797473452,-150.0,0.00018673,2]
[350328632,1737797473461,-150.0,0.00018685,2]
[350328633,1737797473471,-150.0,0.00018702,2]
[350328634,1737797473480,-150.0,0.0001871,2]
[350328635,1737797473490,-210.92,0.00018721,2]
[350328636,1737797473499,-150.0,0.00018722,2]
[350328637,1737797473509,-150.0,0.00018741,2]
[350328638,1737797473519,-756.81,0.00018751,2]
[350328639,1737797473528,-150.0,0.00018755,2]
[350328640,1737797473543,-150.0,0.00018759,2]
[350328641,1737797473553,-847.51,0.00018764,2]
[350328642,1737797473563,-948.3,0.00018764,2]
[350328643,1737797473574,-500.0,0.00018764,2]
[350328644,1737797473584,-892.9,0.00018764,2]
[350328645,1737797473594,-810.96,0.00018764,2]
[350328646,1737797473604,-2187.67,0.00018764,2]
[350328647,1737797473614,-790.46,0.00018764,2]
[350328648,1737797473624,-1160.27,0.00018764,2]
[350328649,1737797473634,-1757.48,0.00018764,2]
[350328650,1737797473644,-500.0,0.00018764,2]
[350328651,1737797473728,-1000.0,0.00018764,2]
[350328652,1737797473745,-1272.01,0.00018764,2]
[350328653,1737797473755,-500.0,0.00018764,2]
[350328654,1737797473764,-2144.12,0.00018764,2]
[350328655,1737797473773,-1761.29,0.00018764,2]
[350328656,1737797473783,-500.0,0.00018764,2]
[350328657,1737797473792,-500.0,0.00018765,2]
[350328658,1737797473801,-660.25,0.00018765,2]
[350328659,1737797473811,-500.0,0.00018765,2]
[350328660,1737797473821,-500.0,0.00018765,2]
[350328661,1737797473830,-500.0,0.00018765,2]
[350328662,1737797473840,-500.0,0.00018765,2]
[350328663,1737797473850,-556.36,0.00018765,2]
[350328664,1737797473860,-556.97,0.00018765,2]
[350328665,1737797473870,-554.44,0.00018765,2]
[350328666,1737797473880,-520.83,0.00018765,2]
[350328667,1737797473889,-500.0,0.00018765,2]
[350328668,1737797473899,-500.0,0.00018765,2]
[350328669,1737797473908,-500.0,0.00018765,2]
[350328670,1737797473917,-500.0,0.00018765,2]
[350328671,1737797473927,-500.0,0.00018765,2]
[350328672,1737797473937,-500.0,0.00018765,2]
[350328673,1737797473947,-670.64,0.00018765,2]
[350328674,1737797473957,-602.32,0.00018765,2]
[350328675,1737797473967,-680.16,0.00018765,2]
[350328676,1737797473976,-529.1,0.00018765,2]
[350328677,1737797473986,-500.0,0.00018765,2]
[350328678,1737797473995,-859.85,0.00018766,2]
[350328679,1737797474006,-500.0,0.00018766,2]
[350328680,1737797474016,-1261.29,0.00018766,2]
[350328681,1737797474026,-500.0,0.00018766,2]
[350328682,1737797474036,-414.733287,0.00018766,2]
[350328683,1737797474045,-584.51,0.00018766,2]
[350328684,1737797474054,-886.87,0.00018766,2]
[350328685,1737797474063,-677.70576,0.00018766,2]
[350328686,1737797474073,-751.77,0.00018766,2]
[350328687,1737797474084,-1965.33,0.00018766,2]
[350328688,1737797474094,-1750.49,0.00018766,2]
[350328689,1737797474104,-620.77,0.00018766,2]
[350328690,1737797474113,-911.51,0.00018766,2]
[350328691,1737797474123,-500.0,0.00018766,2]
[350328692,1737797474133,-1144.83,0.00018766,2]
[350328693,1737797474142,-3470.4,0.00018766,2]
[350328694,1737797474152,-670.47,0.00018766,2]
[350328695,1737797474162,-931.54,0.00018766,2]
[350328696,1737797474171,-1892.47,0.00018766,2]
[350328697,1737797474181,-1137.65,0.00018766,2]
[350328698,1737797474190,-526.37,0.00018766,2]
[350328699,1737797474200,-2356.62,0.00018766,2]
[350328700,1737797474210,-2776.17,0.00018766,2]
[350328701,1737797474221,-1575.32,0.00018766,2]
[350328702,1737797474230,-1053.08,0.00018766,2]
[350328703,1737797474239,-3004.39,0.00018766,2]
[350328704,1737797474249,-607.11,0.00018766,2]
[350328705,1737797474258,-854.74,0.00018766,2]
[350328706,1737797474267,-1162.18,0.00018766,2]
[350328707,1737797474276,-186.950326,0.00018767,2]
[350328708,1737797474286,-966.49,0.00018767,2]
[350328709,1737797474296,-1692.78,0.00018767,2]
[350328710,1737797474305,-1322.88,0.00018767,2]
[350328711,1737797474315,-3207.34,0.00018767,2]
[350328712,1737797474324,-1220.06,0.00018767,2]
[350328713,1737797474334,-1876.29,0.00018767,2]
[350328714,1737797474344,-3623.03,0.00018767,2]
[350328715,1737797474354,-1095.65,0.00018767,2]
[350328716,1737797474363,-893.22,0.00018767,2]
[350328717,1737797474377,-184.46194081,0.00018767,2]
[350328718,1737797474394,-2172.47,0.00018767,2]
[350328719,1737797474411,-497.44147553,0.00018767,2]
[350328720,1737797474429,-2137.64,0.00018767,2]
[350328721,1737797474447,-3965.67,0.00018767,2]
[350328722,1737797474463,-727.17,0.00018767,2]
[350328723,1737797474480,-2139.73,0.00018767,2]
[350328724,1737797474498,-658.04,0.00018767,2]
[350328725,1737797474518,-360.63,0.00018767,2]
[350328726,1737797474537,-993.89,0.00018767,2]
[350328727,1737797474556,-1604.26,0.00018767,2]
[350328728,1737797474575,-500.0,0.00018767,2]
[350328729,1737797474590,-213.02269286,0.00018767,2]
[350328730,1737797474609,-767.56,0.00018767,2]
[350328731,1737797474623,-1799.67,0.00018767,2]
[350328732,1737797474639,-900.97,0.00018767,2]
[350328733,1737797474653,-2375.71,0.00018767,2]
[350328734,1737797474668,-730.12,0.00018767,2]
[350328735,1737797474683,-849.75,0.00018767,2]